[Event "Marshall CC Premier 04-2025"]
[Site "New York"]
[Date "2025.04.05"]
[Round "2.9"]
[White "Le, Quan Anh"]
[Black "Marzouq, Chowdhury"]
[Result "0-1"]
[Annotator "RC"]
[ECO "B70"]
[WhiteElo "2111"]
[BlackElo "1983"]
[PlyCount "126"]
[EventDate "2025.01.03"]
[EventType "swiss"]
[EventCountry "USA"]
[SourceTitle "playchess.com"]
[Source "ChessBase"]
[SourceQuality "1"]
[TimeControl "5400+30"]

1. e4 {[%emt 0:00:02]} c5 {[%emt 0:00:04]} 2. Nf3 {[%emt 0:00:04]} d6 {[%emt 0:00:04]} 3. d4 {[%emt 0:00:04]} cxd4 {[%emt 0:00:10]} 4. Nxd4 {[%emt 0:00:18]} Nf6 {[%emt 0:00:05]} 5. Nc3 {[%emt 0:00:04]} a6 {[%emt 0:00:07]} 6. g3 {[%emt 0:00:04]} Nc6 {[%emt 0:06:12]} 7. Bg2 {[%emt 0:00:08]} Nxd4 {[%emt 0:00:19]} 8. Qxd4 {[%emt 0:00:06]} g6 {[%emt 0:00:17]} 9. O-O {[%emt 0:00:14]} Bg7 {[%emt 0:00:06]} 10. a4 {[%emt 0:03:04]} O-O {[%emt 0:00:54]} 11. Qd3 {[%emt 0:01:13]} Nd7 {[%emt 0:04:43]} 12. Nd5 {[%emt 0:20:08]} Nc5 {[%emt 0:11:38]} 13. Qe2 {[%emt 0:00:46]} a5 {[%emt 0:03:03]} 14. Ra2 {[%emt 0:01:39]} b6 {[%emt 0:01:09]} 15. Bg5 {[%emt 0:08:22]} Ba6 {[%emt 0:02:16]} 16. c4 {[%emt 0:00:05]} Ra7 {[%emt 0:05:22]} 17. Rc1 {[%emt 0:00:56]} h6 {[%emt 0:05:50]} 18. Be3 {[%emt 0:00:45]} e6 {[%emt 0:02:52]} 19. Nf4 {[%emt 0:05:21]} Qd7 {[%emt 0:11:51]} 20. Qc2 {[%emt 0:03:54]} Rc8 {[%emt 0:03:49]} 21. b3 {[%emt 0:02:34]} Bb7 {[%emt 0:02:00]} 22. Rd1 {[%emt 0:03:08]} Qe7 {[%emt 0:04:16]} 23. Qb1 {[%emt 0:03:20]} Raa8 {[%emt 0:01:31]} 24. Rad2 {[%emt 0:01:20]} Rd8 {[%emt 0:00:06]} 25. Ne2 {[%emt 0:01:43]} f5 {[%emt 0:03:23]} 26. exf5 {[%emt 0:16:45]} Bxg2 {[%emt 0:01:49]} 27. Kxg2 {[%emt 0:00:04]} gxf5 {[%emt 0:00:12]} 28. Bd4 {[%emt 0:07:16]} Ne4 {[%emt 0:01:26]} 29. Rd3 {[%emt 0:01:13]} Qb7 {[%emt 0:02:28]} 30. f3 {[%emt 0:00:26]} e5 {[%emt 0:02:27]} 31. Be3 {[%emt 0:00:37]} Nf6 {[%emt 0:04:05]} 32. Rxd6 {[%emt 0:01:34]} Rxd6 {[%emt 0:00:25]} 33. Rxd6 {[%emt 0:00:01]} e4 {[%emt 0:00:33]} 34. f4 {[%emt 0:07:28]} Ng4 {[%emt 0:02:38]} 35. Qc1 {[%emt 0:00:10]} Qc7 {[%emt 0:00:24]} 36. Rd5 {[%emt 0:06:19]} Rd8 {[%emt 0:00:14]} 37. Rxd8+ {[%emt 0:02:04]} Qxd8 {[%emt 0:00:03]} 38. h3 {[%emt 0:00:06]} Qd3 {[%emt 0:01:37]} 39. hxg4 {[%emt 0:01:07]} Qxe2+ {[%emt 0:00:03]} 40. Kg1 {[%emt 0:00:42]} Qxg4 {[%emt 0:00:40]} 41. Qe1 {[%emt 0:01:55]} Qf3 {[%emt 0:04:13]} 42. Kh2 {[%emt 0:00:03]} Qh5+ {[%emt 0:03:56]} 43. Kg1 {[%emt 0:00:01]} Qf3 {[%emt 0:00:02]} 44. Kh2 {[%emt 0:01:46]} h5 {[%emt 0:00:56]} 45. Qd2 {[%emt 0:01:01]} Kh7 {[%emt 0:00:28]} 46. Bxb6 {[%emt 0:01:02]} Qxb3 {[%emt 0:00:05]} 47. Qxa5 {[%emt 0:00:24]} Kg6 {[%emt 0:01:00]} 48. Qb5 {[%emt 0:00:55]} Qc2+ {[%emt 0:00:25]} 49. Kh3 {[%emt 0:00:46]} Qe2 {[%emt 0:02:45]} 50. Qe8+ {[%emt 0:01:05]} Kh7 {[%emt 0:00:03]} 51. Qf7 {[%emt 0:00:32]} Qg4+ {[%emt 0:01:32]} 52. Kh2 {[%emt 0:00:07]} h4 {[%emt 0:00:21]} 53. gxh4 {[%emt 0:00:46]} Qxh4+ {[%emt 0:00:04]} 54. Kg2 {[%emt 0:00:13]} Qg4+ {[%emt 0:00:23]} 55. Kh1 {[%emt 0:00:55]} Qh3+ {[%emt 0:03:44]} 56. Kg1 {[%emt 0:00:02]} e3 {[%emt 0:00:35]} 57. Qe6 {[%emt 0:01:11]} Qg3+ {[%emt 0:00:46]} 58. Kh1 {[%emt 0:00:02]} Qe1+ {[%emt 0:00:16]} 59. Kg2 {[%emt 0:00:33]} Qf2+ {[%emt 0:00:02]} 60. Kh1 {[%emt 0:00:43]} Qf3+ {[%emt 0:01:23]} 61. Kg1 {[%emt 0:00:00]} Qg4+ {[%emt 0:00:46]} 62. Kh1 {[%emt 0:00:41]} e2 {[%emt 0:00:14]} 63. Ba5 {[%emt 0:01:31]} Qh3+ {[%emt 0:00:09]} 0-1

[Event "Marshall CC Premier 04-2025"]
[Site "New York"]
[Date "2025.04.05"]
[Round "2.10"]
[White "Li, Mason J"]
[Black "Saxena, Vihaan"]
[Result "1/2-1/2"]
[Annotator "RC"]
[ECO "C45"]
[WhiteElo "1823"]
[BlackElo "1913"]
[PlyCount "111"]
[EventDate "2025.01.03"]
[EventType "swiss"]
[EventCountry "USA"]
[SourceTitle "playchess.com"]
[Source "ChessBase"]
[SourceQuality "1"]
[TimeControl "5400+30"]

1. e4 {[%emt 0:00:01]} e5 {[%emt 0:00:06]} 2. Nf3 {[%emt 0:00:11]} Nc6 {[%emt 0:00:14]} 3. d4 {[%emt 0:00:11]} exd4 {[%emt 0:00:26]} 4. Nxd4 {[%emt 0:00:12]} Nf6 {[%emt 0:00:11]} 5. Nxc6 {[%emt 0:00:09]} bxc6 {[%emt 0:00:07]} 6. e5 {[%emt 0:00:07]} Qe7 {[%emt 0:00:07]} 7. Qe2 {[%emt 0:00:06]} Nd5 {[%emt 0:00:05]} 8. c4 {[%emt 0:00:11]} Ba6 {[%emt 0:00:06]} 9. b3 {[%emt 0:00:20]} g6 {[%emt 0:03:01]} 10. g3 {[%emt 0:00:10]} Bg7 {[%emt 0:00:44]} 11. Bb2 {[%emt 0:00:13]} O-O {[%emt 0:05:03]} 12. Bg2 {[%emt 0:00:19]} Rfe8 {[%emt 0:01:43]} 13. O-O {[%emt 0:00:30]} Nb6 {[%emt 0:06:33]} 14. Re1 {[%emt 0:04:11]} d5 {[%emt 0:04:48]} 15. Nd2 {[%emt 0:10:43]} f6 {[%emt 0:18:06]} 16. e6 {[%emt 0:19:48]} Bc8 {[%emt 0:02:34]} 17. Rac1 {[%emt 0:11:09]} Qxe6 {[%emt 0:31:50]} 18. Qf1 {[%emt 0:06:01]} Qf7 {[%emt 0:00:09]} 19. cxd5 {[%emt 0:02:17]} Rxe1 {[%emt 0:00:53]} 20. Qxe1 {[%emt 0:00:33]} cxd5 {[%emt 0:01:10]} 21. a4 {[%emt 0:05:50]} Bb7 {[%emt 0:07:39]} 22. a5 {[%emt 0:05:22]} Re8 {[%emt 0:01:49]} 23. Qf1 {[%emt 0:01:02]} Nc8 {[%emt 0:00:12]} 24. a6 {[%emt 0:00:43]} Ba8 {[%emt 0:00:31]} 25. Qb5 {[%emt 0:07:23]} Nb6 {[%emt 0:00:57]} 26. Bd4 {[%emt 0:03:32]} f5 {[%emt 0:03:21]} 27. Nf3 {[%emt 0:04:03]} c6 {[%emt 0:04:00]} 28. Qc5 {[%emt 0:01:03]} Qf8 {[%emt 0:02:25]} 29. Qc3 {[%emt 0:04:24]} Bxd4 {[%emt 0:00:24]} 30. Nxd4 {[%emt 0:00:57]} Qd6 {[%emt 0:00:23]} 31. b4 {[%emt 0:03:48]} Nc4 {[%emt 0:01:33]} 32. Bf1 {[%emt 0:04:15]} c5 {[%emt 0:00:55]} 33. Nb5 {[%emt 0:01:58]} Qc6 {[%emt 0:01:07]} 34. Na3 {[%emt 0:00:45]} Nxa3 {[%emt 0:00:56]} 35. Qxa3 {[%emt 0:00:23]} d4 {[%emt 0:01:25]} 36. f3 {[%emt 0:01:17]} Re3 {[%emt 0:00:57]} 37. Qa2+ {[%emt 0:00:24]} Kg7 {[%emt 0:00:49]} 38. Rxc5 {[%emt 0:00:06]} Qxf3 {[%emt 0:00:38]} 39. Rc7+ {[%emt 0:02:30]} Kh6 {[%emt 0:00:04]} 40. Rxh7+ {[%emt 0:00:37]} Kxh7 {[%emt 0:00:48]} 41. Qf7+ {[%emt 0:00:08]} Kh6 {[%emt 0:00:22]} 42. Qf8+ {[%emt 0:00:05]} Kh7 {[%emt 0:00:47]} 43. Qf7+ {[%emt 0:00:12]} Kh6 {[%emt 0:00:21]} 44. Qf8+ {[%emt 0:00:07]} Kg5 {[%emt 0:01:01]} 45. Qd8+ {[%emt 0:00:09]} Re7 {[%emt 0:00:44]} 46. Qxe7+ {[%emt 0:00:33]} Kh6 {[%emt 0:00:06]} 47. Qh4+ {[%emt 0:03:07]} Kg7 {[%emt 0:00:06]} 48. Qxd4+ {[%emt 0:00:04]} Kh7 {[%emt 0:01:00]} 49. Qd7+ {[%emt 0:02:04]} Kh8 {[%emt 0:00:16]} 50. Qc8+ {[%emt 0:00:33]} Kh7 {[%emt 0:00:29]} 51. Qc7+ {[%emt 0:00:11]} Kh8 {[%emt 0:00:21]} 52. Qe5+ {[%emt 0:00:43]} Kh7 {[%emt 0:00:06]} 53. Qe7+ {[%emt 0:00:24]} Kh8 {[%emt 0:00:26]} 54. Qf6+ {[%emt 0:00:25]} Kh7 {[%emt 0:00:05]} 55. Qh4+ {[%emt 0:00:24]} Kg7 {[%emt 0:00:09]} 56. Qe7+ {[%emt 0:00:00]} 1/2-1/2